lending/lending_fUSD_20241115
["ID","MTS","AMOUNT","RATE_DAILY","PERIOD"]
[342321263,1731705034833,-500.0,9.999e-05,2]
[342321264,1731705034842,-500.0,9.999e-05,2]
[342321265,1731705034851,-500.0,9.999e-05,2]
[342321266,1731705034860,-500.0,9.999e-05,2]
[342321267,1731705034869,-453.54,9.999e-05,2]
[342321268,1731705034879,-500.0,9.999e-05,2]
[342321269,1731705034888,-500.0,9.999e-05,2]
[342321270,1731705034897,-500.0,9.999e-05,2]
[342321271,1731705034906,-500.0,9.999e-05,2]
[342321272,1731705034916,-500.0,9.999e-05,2]
[342321273,1731705034924,-500.0,9.999e-05,2]
[342321274,1731705034933,-500.0,9.999e-05,2]
[342321275,1731705034943,-500.0,9.999e-05,2]
[342321276,1731705034952,-500.0,9.999e-05,2]
[342321277,1731705034960,-500.0,9.999e-05,2]
[342321278,1731705034969,-177.20245017,9.999e-05,2]
[342321279,1731705034982,-500.0,9.999e-05,2]
[342321280,1731705034991,-500.0,9.999e-05,2]
[342321281,1731705034999,-500.0,9.999e-05,2]
[342321282,1731705035009,-500.0,9.999e-05,2]
[342321283,1731705035018,-500.0,9.999e-05,2]
[342321284,1731705035027,-500.0,9.999e-05,2]
[342321285,1731705035036,-500.0,9.999e-05,2]
[342321286,1731705035045,-500.0,9.999e-05,2]
[342321287,1731705035054,-500.0,9.999e-05,2]
[342321288,1731705035064,-289.34878895,9.999e-05,2]
[342321289,1731705035073,-500.0,9.999e-05,2]
[342321290,1731705035082,-500.0,9.999e-05,2]
[342321291,1731705035091,-500.0,9.999e-05,2]
[342321292,1731705035100,-500.0,9.999e-05,2]
[342321293,1731705035109,-443.07803166,9.999e-05,2]
[342321294,1731705035118,-500.0,9.999e-05,2]
[342321295,1731705035128,-500.0,9.999e-05,2]
[342321296,1731705035137,-500.0,9.999e-05,2]
[342321297,1731705035146,-500.0,9.999e-05,2]
[342321298,1731705035155,-500.0,9.999e-05,2]
[342321299,1731705035164,-339.65936592,9.999e-05,2]
[342321300,1731705035173,-500.0,9.999e-05,2]
[342321301,1731705035182,-500.0,9.999e-05,2]
[342321302,1731705035191,-500.0,9.999e-05,2]
[342321303,1731705035200,-500.0,9.999e-05,2]
[342321304,1731705035209,-500.0,9.999e-05,2]
[342321305,1731705035218,-500.0,9.999e-05,2]
[342321306,1731705035229,-500.0,9.999e-05,2]
[342321307,1731705035239,-500.0,9.999e-05,2]
[342321308,1731705035249,-500.0,9.999e-05,2]
[342321309,1731705035259,-500.0,9.999e-05,2]
[342321310,1731705035269,-189.28346878,9.999e-05,2]
[342321311,1731705035278,-500.0,9.999e-05,2]
[342321312,1731705035287,-500.0,9.999e-05,2]
[342321313,1731705035295,-500.0,9.999e-05,2]
[342321314,1731705035308,-500.0,9.999e-05,2]
[342321315,1731705035317,-500.0,9.999e-05,2]
[342321316,1731705035326,-500.0,9.999e-05,2]
[342321317,1731705035335,-483.8,9.999e-05,2]
[342321318,1731705035345,-500.0,9.999e-05,2]
[342321319,1731705035354,-303.24,9.999e-05,2]
[342321320,1731705035362,-500.0,9.999e-05,2]
[342321321,1731705035371,-500.0,9.999e-05,2]
[342321322,1731705035380,-500.0,9.999e-05,2]
[342321323,1731705035390,-500.0,9.999e-05,2]
[342321324,1731705035399,-500.0,9.999e-05,2]
[342321325,1731705035409,-342.57562642,9.999e-05,2]
[342321326,1731705035417,-500.0,9.999e-05,2]
[342321327,1731705035426,-177.12,9.999e-05,2]
[342321328,1731705035435,-500.0,9.999e-05,2]
[342321329,1731705035444,-500.0,9.999e-05,2]
[342321330,1731705035453,-500.0,9.999e-05,2]
[342321331,1731705035462,-500.0,9.999e-05,2]
[342321332,1731705035472,-500.0,9.999e-05,2]
[342321333,1731705035484,-310.16,9.999e-05,2]
[342321334,1731705035493,-500.0,9.999e-05,2]
[342321335,1731705035502,-500.0,9.999e-05,2]
[342321336,1731705035511,-500.0,9.999e-05,2]
[342321337,1731705035520,-500.0,9.999e-05,2]
[342321338,1731705035529,-500.0,9.999e-05,2]
[342321339,1731705035537,-500.0,9.999e-05,2]
[342321340,1731705035546,-500.0,9.999e-05,2]
[342321341,1731705035555,-500.0,9.999e-05,2]
[342321342,1731705035564,-500.0,9.999e-05,2]
[342321343,1731705035573,-500.0,9.999e-05,2]
[342321344,1731705035583,-500.0,9.999e-05,2]
[342321345,1731705035592,-500.0,9.999e-05,2]
[342321346,1731705035601,-500.0,9.999e-05,2]
[342321347,1731705035611,-238.26805987,9.999e-05,2]
[342321348,1731705035620,-500.0,9.999e-05,2]
[342321349,1731705035630,-500.0,9.999e-05,2]
[342321350,1731705035639,-500.0,9.999e-05,2]
[342321351,1731705035648,-500.0,9.999e-05,2]
[342321352,1731705035657,-500.0,9.999e-05,2]
[342321353,1731705035666,-500.0,9.999e-05,2]
[342321354,1731705035676,-642.41,9.999e-05,2]
[342321355,1731705035685,-500.0,9.999e-05,2]
[342321356,1731705035694,-642.41,9.999e-05,2]
[342321357,1731705035704,-442.96,9.999e-05,2]
[342321358,1731705035713,-642.41,9.999e-05,2]
[342321359,1731705035722,-642.41,9.999e-05,2]
[342321360,1731705035737,-642.41,9.999e-05,2]
[342321361,1731705035746,-642.41,9.999e-05,2]
[342321362,1731705035755,-642.41,9.999e-05,2]
[342321363,1731705035765,-642.41,9.999e-05,2]
[342321364,1731705035774,-642.41,9.999e-05,2]
[342321365,1731705035783,-642.41,9.999e-05,2]
[342321366,1731705035792,-642.41,9.999e-05,2]
[342321367,1731705035802,-642.41,9.999e-05,2]
[342321368,1731705035811,-642.41,9.999e-05,2]
[342321369,1731705035820,-642.41,9.999e-05,2]
[342321370,1731705035830,-642.41,9.999e-05,2]
[342321371,1731705035839,-642.41,9.999e-05,2]
[342321372,1731705035849,-642.41,9.999e-05,2]
[342321373,1731705035858,-642.41,9.999e-05,2]
[342321374,1731705035867,-642.41,9.999e-05,2]
[342321375,1731705035876,-642.41,9.999e-05,2]
[342321376,1731705035885,-642.41,9.999e-05,2]
[342321377,1731705035894,-642.41,9.999e-05,2]
[342321378,1731705035905,-642.42,9.999e-05,2]
[342321379,1731705035914,-500.0,9.999e-05,2]
[342321380,1731705035922,-500.0,9.999e-05,2]
[342321381,1731705035931,-500.0,9.999e-05,2]
[342321382,1731705035940,-500.0,9.999e-05,2]
[342321383,1731705035949,-500.0,9.999e-05,2]
[342321384,1731705035958,-500.0,9.999e-05,2]
[342321385,1731705035967,-500.0,9.999e-05,2]
[342321386,1731705035980,-500.0,9.999e-05,2]
[342321387,1731705035989,-500.0,9.999e-05,2]
[342321388,1731705035998,-500.0,9.999e-05,2]
[342321389,1731705036007,-500.0,9.999e-05,2]
[342321390,1731705036016,-500.0,9.999e-05,2]
[342321391,1731705036025,-500.0,9.999e-05,2]
[342321392,1731705036034,-500.0,9.999e-05,2]
[342321393,1731705036043,-500.0,9.999e-05,2]
[342321394,1731705036053,-500.0,9.999e-05,2]
[342321395,1731705036062,-350.58080962,9.999e-05,2]
[342321396,1731705036078,-149.41919038,9.999e-05,2]
[342321397,1731705036087,-204.65,9.999e-05,2]
[342321398,1731705036096,-500.0,9.999e-05,2]
[342321399,1731705036105,-500.0,9.999e-05,2]
[342321400,1731705036114,-500.0,9.999e-05,2]
[342321401,1731705036123,-500.0,9.999e-05,2]
[342321402,1731705036132,-500.0,9.999e-05,2]
[342321403,1731705036141,-500.0,9.999e-05,2]
[342321404,1731705036150,-500.0,9.999e-05,2]
[342321405,1731705036159,-235.57360865,9.999e-05,2]
[342321406,1731705036168,-500.0,9.999e-05,2]
[342321407,1731705036177,-500.0,9.999e-05,2]
[342321408,1731705036186,-500.0,9.999e-05,2]
[342321409,1731705036195,-254.9,9.999e-05,2]
[342321410,1731705036204,-500.0,9.999e-05,2]
[342321411,1731705036213,-261.19803017,9.999e-05,2]
[342321412,1731705036240,-238.80196983,9.999e-05,2]
[342321413,1731705036248,-500.0,9.999e-05,2]
[342321414,1731705036257,-500.0,9.999e-05,2]
[342321415,1731705036266,-500.0,9.999e-05,2]
[342321416,1731705036275,-500.0,9.999e-05,2]
[342321417,1731705036284,-500.0,9.999e-05,2]
[342321418,1731705036293,-500.0,9.999e-05,2]
[342321419,1731705036303,-500.0,9.999e-05,2]
[342321420,1731705036313,-500.0,9.999e-05,2]
[342321421,1731705036325,-500.0,9.999e-05,2]
[342321422,1731705036335,-500.0,9.999e-05,2]
[342321423,1731705036344,-500.0,9.999e-05,2]
[342321424,1731705036353,-500.0,9.999e-05,2]
[342321425,1731705036363,-500.0,9.999e-05,2]
[342321426,1731705036372,-500.0,9.999e-05,2]
[342321427,1731705036382,-500.0,9.999e-05,2]
[342321428,1731705036392,-500.0,9.999e-05,2]
[342321429,1731705036401,-500.0,9.999e-05,2]
[342321430,1731705036410,-500.0,9.999e-05,2]
[342321431,1731705036419,-500.0,9.999e-05,2]
[342321432,1731705036428,-235.95,9.999e-05,2]
[342321433,1731705036437,-500.0,9.999e-05,2]
[342321434,1731705036446,-500.0,9.999e-05,2]
[342321435,1731705036455,-500.0,9.999e-05,2]
[342321436,1731705036464,-500.0,9.999e-05,2]
[342321437,1731705036473,-500.0,9.999e-05,2]
[342321438,1731705036488,-245.99693762,9.999e-05,2]
[342321439,1731705036497,-500.0,9.999e-05,2]
[342321440,1731705036506,-500.0,9.999e-05,2]
[342321441,1731705036515,-500.0,9.999e-05,2]
[342321442,1731705036524,-500.0,9.999e-05,2]
[342321443,1731705036533,-500.0,9.999e-05,2]
[342321444,1731705036543,-500.0,9.999e-05,2]
[342321445,1731705036551,-500.0,9.999e-05,2]
[342321446,1731705036560,-500.0,9.999e-05,2]
[342321447,1731705036569,-500.0,9.999e-05,2]
[342321448,1731705036579,-500.0,9.999e-05,2]
[342321449,1731705036588,-500.0,9.999e-05,2]
[342321450,1731705036597,-500.0,9.999e-05,2]
[342321451,1731705036606,-500.0,9.999e-05,2]
[342321452,1731705036615,-500.0,9.999e-05,2]
[342321453,1731705036623,-500.0,9.999e-05,2]
[342321454,1731705036633,-500.0,9.999e-05,2]
[342321455,1731705036642,-500.0,9.999e-05,2]
[342321456,1731705036652,-500.0,9.999e-05,2]
[342321457,1731705036661,-500.0,9.999e-05,2]
[342321458,1731705036670,-500.0,9.999e-05,2]
[342321459,1731705036679,-500.0,9.999e-05,2]
[342321460,1731705036689,-881.82,9.999e-05,2]
[342321461,1731705036699,-500.0,9.999e-05,2]
[342321462,1731705036708,-881.82,9.999e-05,2]
[342321463,1731705036717,-500.0,9.999e-05,2]
[342321464,1731705036727,-500.0,9.999e-05,2]
[342321465,1731705036740,-881.82,9.999e-05,2]
[342321466,1731705036749,-500.0,9.999e-05,2]
[342321467,1731705036759,-881.82,9.999e-05,2]
[342321468,1731705036769,-881.82,9.999e-05,2]
[342321469,1731705036778,-500.0,9.999e-05,2]
[342321470,1731705036788,-881.82,9.999e-05,2]
[342321471,1731705036797,-881.82,9.999e-05,2]
[342321472,1731705036807,-881.82,9.999e-05,2]
[342321473,1731705036815,-318.15,9.999e-05,2]
[342321474,1731705036825,-881.82,9.999e-05,2]
[342321475,1731705036834,-881.82,9.999e-05,2]
[342321476,1731705036843,-881.82,9.999e-05,2]
[342321477,1731705036852,-881.82,9.999e-05,2]
[342321478,1731705036862,-881.82,9.999e-05,2]
[342321479,1731705036871,-881.82,9.999e-05,2]
[342321480,1731705036880,-881.82,9.999e-05,2]
[342321481,1731705036889,-881.82,9.999e-05,2]
[342321482,1731705036899,-881.82,9.999e-05,2]
[342321483,1731705036907,-881.82,9.999e-05,2]
[342321484,1731705036917,-881.82,9.999e-05,2]
[342321485,1731705036926,-500.0,9.999e-05,2]
[342321486,1731705036935,-500.0,9.999e-05,2]
[342321487,1731705036945,-500.0,9.999e-05,2]
[342321488,1731705036954,-500.0,9.999e-05,2]
[342321489,1731705036963,-518.15450616,9.999e-05,2]
[342321490,1731705036972,-881.82,9.999e-05,2]
[342321491,1731705036985,-881.82,9.999e-05,2]
[342321492,1731705036995,-881.82,9.999e-05,2]
[342321493,1731705037004,-881.99,9.999e-05,2]
[342321494,1731705037013,-500.0,9.999e-05,2]
[342321495,1731705037023,-500.0,9.999e-05,2]
[342321496,1731705037032,-500.0,9.999e-05,2]
[342321497,1731705037041,-500.0,9.999e-05,2]
[342321498,1731705037052,-500.0,9.999e-05,2]
[342321499,1731705037061,-513.3,9.999e-05,2]
[342321500,1731705037071,-500.0,9.999e-05,2]
[342321501,1731705037080,-533.89123007,9.999e-05,2]
[342321502,1731705037089,-500.0,9.999e-05,2]
[342321503,1731705037098,-500.0,9.999e-05,2]
[342321504,1731705037107,-298.95228656,9.999e-05,2]
[342321505,1731705037117,-500.0,9.999e-05,2]
[342321506,1731705037126,-500.0,9.999e-05,2]
[342321507,1731705037135,-500.0,9.999e-05,2]
[342321508,1731705037145,-500.0,9.999e-05,2]
[342321509,1731705037155,-620.6,9.999e-05,2]
[342321510,1731705037164,-500.0,9.999e-05,2]
[342321511,1731705037173,-500.0,9.999e-05,2]
[342321512,1731705037183,-500.0,9.999e-05,2]
[342321513,1731705037193,-484.52018876,9.999e-05,2]
[342321514,1731705037207,-15.47981124,9.999e-05,2]
[342321515,1731705037216,-500.0,9.999e-05,2]
[342321516,1731705037225,-385.50025196,9.999e-05,2]
[342321517,1731705037237,-500.0,9.999e-05,2]
[342321518,1731705037246,-500.0,9.999e-05,2]
[342321519,1731705037255,-500.0,9.999e-05,2]
[342321520,1731705037264,-183.59005446,9.999e-05,2]
[342321521,1731705037275,-316.40994554,9.999e-05,2]
[342321522,1731705037284,-500.0,9.999e-05,2]
[342321523,1731705037293,-500.0,9.999e-05,2]
[342321524,1731705037305,-347.25,9.999e-05,2]
[342321525,1731705037314,-500.0,9.999e-05,2]
[342321526,1731705037323,-500.0,9.999e-05,2]
[342321527,1731705037332,-500.0,9.999e-05,2]
[342321528,1731705037342,-180.3010329,9.999e-05,2]
[342321529,1731705037353,-319.6989671,9.999e-05,2]
[342321530,1731705037362,-500.0,9.999e-05,2]
[342321531,1731705037372,-500.0,9.999e-05,2]
[342321532,1731705037381,-500.0,9.999e-05,2]
[342321533,1731705037392,-500.0,9.999e-05,2]
[342321534,1731705037401,-500.0,9.999e-05,2]
[342321535,1731705037410,-500.0,9.999e-05,2]
[342321536,1731705037419,-500.0,9.999e-05,2]
[342321537,1731705037428,-500.0,9.999e-05,2]
[342321538,1731705037437,-500.0,9.999e-05,2]
[342321539,1731705037446,-500.0,9.999e-05,2]
[342321540,1731705037457,-500.0,9.999e-05,2]
[342321541,1731705037466,-449.95,9.999e-05,2]
[342321542,1731705037475,-500.0,9.999e-05,2]
[342321543,1731705037487,-500.0,9.999e-05,2]
[342321544,1731705037497,-500.0,9.999e-05,2]
[342321545,1731705037506,-500.0,9.999e-05,2]
[342321546,1731705037515,-530.58798825,9.999e-05,2]
[342321547,1731705037535,-47.38249445,9.999e-05,2]
[342321548,1731705037544,-281.05230565,0.0001,2]
[342321549,1731705037555,-2281.66041982,0.0001,2]
[342321550,1731705037567,-976.68107312,0.0001,2]
[342321552,1731705038412,-543.42108632,0.0001,2]
[342321553,1731705038424,-288.0,0.0001,2]
[342321554,1731705038584,-4129.18511509,0.0001,2]
[342321555,1731705038594,-8500.0,0.0001,2]
[342321556,1731705038603,-6258.47384095,0.0001,2]
[342321557,1731705038644,-91326.75259358,0.0001,2]
[342321558,1731705038661,-1157.67919192,0.0001,2]
[342321559,1731705038705,-7357852.65,0.0001,2]
[342321560,1731705038717,-272.05287107,0.0001,2]
[342321563,1731705040300,-681.76946396,9.999e-05,2]
[342321564,1731705040367,-1829.6,9.999e-05,2]
[342321565,1731705040430,-467.56436565,9.999e-05,2]
[342321566,1731705040441,-5260.0,9.999e-05,2]
[342321567,1731705040453,-261.06617039,9.999e-05,2]
[342321568,1731705040463,-2487.22768024,0.0001,2]
[342321569,1731705040475,-4376.28123493,0.0001,2]
[342321570,1731705040496,-4186.42112626,0.0001,2]
[342321588,1731705043383,-957.39,0.0001,2]
[342321589,1731705043441,-1118.978425,0.0001,2]
[342321590,1731705043452,-5152.19554345,0.0001,2]
[342321591,1731705043552,-73067.60944022,0.0001,2]
[342321592,1731705043610,-5689.23616092,0.0001,2]
[342321593,1731705043621,-3203.4109153,0.0001,2]
[342321594,1731705043633,-277.28882593,0.0001,2]
[342321595,1731705043668,-1817.67063,0.0001,2]
[342321596,1731705043679,-1342.95,0.0001,2]
[342321597,1731705043690,-1765.7713395,0.0001,2]
[342321612,1731705046408,-2324.25231434,0.0001,2]
[342321613,1731705046419,-774.68477017,0.0001,2]
[342321614,1731705046533,-9001.10333483,0.0001,2]
[342321615,1731705046626,-302.71977271,0.0001,2]
[342321616,1731705046637,-731.29630875,0.0001,2]
[342321617,1731705046648,-2653.57553941,0.0001,2]
[342321618,1731705046659,-793.369291,0.0001,2]
[342321619,1731705046674,-1963.52687994,0.0001,2]
[342321620,1731705046685,-400.3022204,0.0001,2]
[342321622,1731705046696,-23261.21387064,0.0001,2]
[342321623,1731705046707,-5488.797528,0.0001,2]
[342321624,1731705070096,500.0,8.438e-05,2]
[342321626,1731705205014,500.0,0.00025,120]
[342321627,1731705216293,260.250459,0.00025,120]
[342321629,1731705322139,99340.5273191,0.00025,60]
[342321630,1731705348348,999.12,8.219e-05,2]
[342321633,1731705884359,250.0,8.289e-05,2]
[342321634,1731705909507,6386.95119798,7.999e-05,2]
[342321635,1731705994882,250.0,8.255e-05,2]
[342321636,1731706063947,1000.0,8.219e-05,2]
[342321637,1731706091224,370.66,8.219e-05,2]
[342321647,1731706140625,949.16,8.219e-05,2]
[342321652,1731706175894,250.0,8.186e-05,2]
[342321667,1731706231460,-168.52,8.579e-05,2]
[342321668,1731706231470,-675.8753,8.598e-05,2]
[342321669,1731706231480,-578.67,8.686e-05,2]
[342321670,1731706231489,-515.74,8.709e-05,2]
[342321671,1731706231498,-1500.0,8.71e-05,2]
[342321672,1731706231507,-515.74,8.711e-05,2]
[342321673,1731706231517,-515.74,8.713e-05,2]
[342321674,1731706231526,-515.74,8.715e-05,2]
[342321675,1731706231535,-515.74,8.718e-05,2]
[342321676,1731706231543,-515.74,8.72e-05,2]
[342321677,1731706231553,-515.74,8.722e-05,2]
[342321678,1731706231562,-515.74,8.725e-05,2]
[342321679,1731706231570,-515.74,8.727e-05,2]
[342321680,1731706231579,-515.74,8.729e-05,2]
[342321681,1731706231588,-515.74,8.732e-05,2]
[342321682,1731706231597,-515.74,8.734e-05,2]
[342321683,1731706231607,-515.74,8.736e-05,2]
[342321684,1731706231616,-515.74,8.738e-05,2]
[342321685,1731706231627,-515.74,8.741e-05,2]
[342321686,1731706231636,-515.74,8.743e-05,2]
[342321687,1731706231645,-515.74,8.745e-05,2]
[342321688,1731706231655,-515.74,8.748e-05,2]
[342321689,1731706231664,-515.74,8.75e-05,2]
[342321690,1731706231674,-515.74,8.752e-05,2]
[342321691,1731706231684,-150.0,8.818e-05,2]
[342321692,1731706231693,-1000.0,9e-05,3]
[342321693,1731706231702,-1916.37,9.062e-05,5]
[342321694,1731706231711,-2000.0,9.1e-05,3]
[342321695,1731706231721,-3000.0,9.2e-05,3]
[342321696,1731706231731,-1000.0,9.247e-05,2]
[342321697,1731706231741,-4100.0,9.3e-05,3]
[342321698,1731706231755,-5100.0,9.4e-05,3]
[342321699,1731706231764,-1000.0,9.5e-05,3]
[342321701,1731706231773,-1700.0,9.534e-05,2]
[342321703,1731706231783,-900.0,9.534e-05,2]
[342321705,1731706231793,-1000.0,9.6e-05,3]
[342321707,1731706231803,-200.0,9.6e-05,2]
[342321709,1731706231812,-2618.84,9.67e-05,2]
[342321711,1731706231822,-150.99,9.67e-05,2]
[342321713,1731706231832,-1873.57,9.67e-05,2]
[342321715,1731706231841,-6582.2,9.67e-05,2]
[342321717,1731706231852,-255.0,9.699e-05,2]
[342321719,1731706231861,-1000.0,9.7e-05,3]
[342321721,1731706231870,-150.0,9.759e-05,2]
[342321723,1731706231879,-578.67,9.771e-05,2]
[342321725,1731706231887,-1000.0,9.8e-05,3]
[342321727,1731706231896,-1528.595,9.814e-05,2]
[342321729,1731706231906,-279.56,9.815e-05,2]
[342321730,1731706231915,-1991.0,9.815e-05,2]
[342321732,1731706231924,-628.0,9.815e-05,2]
[342321733,1731706231933,-626.657,9.815e-05,2]
[342321734,1731706231943,-1924.0,9.815e-05,2]
[342321735,1731706231951,-3745.0,9.815e-05,2]
[342321736,1731706231961,-814.0,9.815e-05,2]
[342321737,1731706231970,-1259.0,9.815e-05,2]
[342321738,1731706231979,-922.0,9.815e-05,2]
[342321739,1731706231988,-3488.0,9.815e-05,2]
[342321740,1731706232214,-1091.0,9.815e-05,2]
[342321741,1731706232224,-158.792,9.815e-05,2]
[342321742,1731706232232,-5931.0,9.815e-05,2]
[342321743,1731706232242,-1255.0,9.815e-05,2]
[342321744,1731706232251,-563.0,9.815e-05,2]
[342321745,1731706232260,-151.0,9.815e-05,2]
[342321746,1731706232270,-120823.83512864,9.88e-05,2]
[342321747,1731706232279,-25856.5838,9.9e-05,2]
[342321748,1731706232288,-7724.5864,9.9e-05,2]
[342321749,1731706232297,-25103.952,9.9e-05,2]
[342321750,1731706232307,-1105.68501838,9.9e-05,2]
[342321751,1731706232316,-1105.68501837,9.9e-05,2]
[342321752,1731706232325,-1457.0,9.9e-05,3]
[342321753,1731706232335,-5000.0,9.9e-05,2]
[342321754,1731706232344,-1947.6649,9.945e-05,2]
[342321755,1731706232353,-500.0,9.973e-05,2]
[342321756,1731706232363,-500.0,9.973e-05,2]
[342321757,1731706232375,-500.0,9.973e-05,2]
[342321758,1731706232385,-160.66028147,9.973e-05,2]
[342321759,1731706232395,-500.0,9.973e-05,2]
[342321760,1731706232404,-633.5925104,9.992e-05,2]
[342321761,1731706232413,-999.2970058,9.992e-05,2]
[342321762,1731706232423,-628.818187,9.993e-05,2]
[342321763,1731706232432,-624.0438635,9.993e-05,2]
[342321764,1731706232441,-619.26954,9.993e-05,2]
[342321765,1731706232450,-614.4952165,9.993e-05,2]
[342321766,1731706232459,-609.7208931,9.993e-05,2]
[342321767,1731706232468,-846.2877469,9.993e-05,2]
[342321768,1731706232477,-693.2784881,9.993e-05,2]
[342321769,1731706232486,-540.2692292,9.993e-05,2]
[342321770,1731706232495,-387.2599704,9.993e-05,2]
[342321771,1731706232504,-234.2507115,9.993e-05,2]
[342321772,1731706232513,-168.52,9.995e-05,2]
[342321773,1731706232522,-351.76383254,9.999e-05,2]
[342321774,1731706232531,-500.0,9.999e-05,2]
[342321775,1731706232540,-417.31091199,9.999e-05,2]
[342321776,1731706232549,-500.0,9.999e-05,2]
[342321777,1731706232558,-299.86692359,9.999e-05,2]
[342321778,1731706232567,-8500.0,9.999e-05,2]
[342321779,1731706232576,-500.0,9.999e-05,2]
[342321780,1731706232585,-500.0,9.999e-05,2]
[342321781,1731706232594,-500.0,9.999e-05,2]
[342321782,1731706232604,-500.0,9.999e-05,2]
[342321783,1731706232612,-500.0,9.999e-05,2]
[342321784,1731706232623,-500.0,9.999e-05,2]
[342321785,1731706232631,-558.08,9.999e-05,2]
[342321786,1731706232640,-500.0,9.999e-05,2]
[342321787,1731706232649,-500.0,9.999e-05,2]
[342321788,1731706232659,-500.0,9.999e-05,2]
[342321789,1731706232667,-500.0,9.999e-05,2]
[342321790,1731706232676,-500.0,9.999e-05,2]
[342321791,1731706232685,-500.0,9.999e-05,2]
[342321792,1731706232695,-500.0,9.999e-05,2]
[342321793,1731706232703,-638.42,9.999e-05,2]
[342321794,1731706232713,-500.0,9.999e-05,2]
[342321795,1731706232722,-500.0,9.999e-05,2]
[342321796,1731706232732,-500.0,9.999e-05,2]
[342321797,1731706232742,-500.0,9.999e-05,2]
[342321798,1731706232754,-500.0,9.999e-05,2]
[342321799,1731706232763,-500.0,9.999e-05,2]
[342321800,1731706232772,-500.0,9.999e-05,2]
[342321801,1731706232782,-500.0,9.999e-05,2]
[342321802,1731706232791,-500.0,9.999e-05,2]
[342321803,1731706232800,-500.0,9.999e-05,2]
[342321804,1731706232809,-500.0,9.999e-05,2]
[342321805,1731706232818,-500.0,9.999e-05,2]
[342321806,1731706232830,-500.0,9.999e-05,2]
[342321807,1731706232839,-500.0,9.999e-05,2]
[342321808,1731706232848,-500.0,9.999e-05,2]
[342321809,1731706232857,-500.0,9.999e-05,2]
[342321810,1731706232867,-500.0,9.999e-05,2]
[342321811,1731706232877,-500.0,9.999e-05,2]
[342321812,1731706232886,-500.0,9.999e-05,2]
[342321813,1731706232896,-500.0,9.999e-05,2]
[342321814,1731706232905,-500.0,9.999e-05,2]
[342321815,1731706232915,-500.0,9.999e-05,2]
[342321816,1731706232924,-500.0,9.999e-05,2]
[342321817,1731706232934,-500.0,9.999e-05,2]
[342321818,1731706232944,-442.08899959,9.999e-05,2]
[342321819,1731706232954,-500.0,9.999e-05,2]
[342321820,1731706232963,-500.0,9.999e-05,2]
[342321821,1731706232971,-500.0,9.999e-05,2]
[342321822,1731706232981,-509.93473518,9.999e-05,2]
[342321823,1731706232990,-8500.0,9.999e-05,2]
[342321824,1731706233000,-500.0,9.999e-05,2]
[342321825,1731706233009,-500.0,9.999e-05,2]
[342321826,1731706233018,-500.0,9.999e-05,2]
[342321827,1731706233028,-500.0,9.999e-05,2]
[342321828,1731706233037,-500.0,9.999e-05,2]
[342321829,1731706233047,-500.0,9.999e-05,2]
[342321830,1731706233057,-500.0,9.999e-05,2]
[342321831,1731706233067,-500.0,9.999e-05,2]
[342321832,1731706233077,-500.0,9.999e-05,2]
[342321833,1731706233087,-214.00924182,9.999e-05,2]
[342321834,1731706233096,-500.0,9.999e-05,2]
[342321835,1731706233106,-245.5671122,9.999e-05,2]
[342321836,1731706233116,-378.44061826,9.999e-05,2]
[342321837,1731706233128,-649.41708377,9.999e-05,2]
[342321838,1731706233138,-500.0,9.999e-05,2]
[342321839,1731706233148,-225.86117289,9.999e-05,2]
[342321840,1731706233158,-196.4020389,0.0001,2]
[342321841,1731706233168,-1657902.9859011,0.0001,2]
[342321842,1731706233182,-1199085.39781667,0.0001,2]
[342321843,1731706233192,-1000.0,0.0001,2]
[342321844,1731706233202,-5037.34620076,0.0001,2]